Cogmind - Beta 11 X10 @@@ ROGUE MODE // 2022.02.04 @ 01:09:25 Player: Runia Result: Destroyed by Y-54 Guardian with Flak Gun Performance ------------- Evolutions (3) 1500 Regions Visited (9) 1800 Robots Destroyed (164) 820 Value Destroyed (4172) 4172 Prototype IDs (12) 240 Alien Tech Used (0) 0 Bonus (673) 673 TOTAL SCORE: 9205 Bonus ------- High Alert Combat Kills 233 Follower Combat Kills 440 Cogmind --------- Core Integrity 0/700 Matter 200/300 Energy 69/100 System Corruption 5% Temperature Cool (9) Movement Flying (29) Location -7/Lower Caves Parts ------- > --- POWER (1) -------- (None) > --- PROPULSION (4) --- Cesium-ion Thruster Cesium-ion Thruster Cesium-ion Thruster > --- UTILITY (5) ------ Improved Signal Interpreter Makeshift Terrain Scan Processor Core Analyzer Makeshift System Shield > --- WEAPON (3) ------- Mini Grenade Launcher Axe > --- INVENTORY (5) ---- Hardened Medium Armor Plating Cooled Particle Cannon Plasma Cutter Tearclaws Peak State ------------ > --- POWER ------------ Nuclear Core > --- PROPULSION ------- Improved Carbon-fiber Leg Improved Carbon-fiber Leg Improved Carbon-fiber Leg Improved Titanium Leg > --- UTILITY ---------- High-capacity Storage Unit Trap Scanner Core Analyzer Actuator Array Hardened Medium Armor Plating > --- WEAPON ----------- Axe Greatsword > --- INVENTORY -------- Nuclear Core Improved Carbon-fiber Leg Structural Scanner Improved Signal Interpreter Core Analyzer Hardened Medium Armor Plating Hardened Medium Armor Plating Hacking Suite Hacking Suite Trap Extractor Cooled Particle Cannon Enhanced Autogun Advanced EMP Blaster Rocket Launcher Mini Grenade Launcher Improved Datajack Plasma Cutter Katana Scythe Axe [Rating: 50] Favorites ----------- Power Ion Engine Engine Ion Engine Power Core Light Nuclear Core Propulsion Improved Titanium Leg Treads Light Treads Leg Improved Titanium Leg Wheel Armored Wheel Flight Unit Cesium-ion Thruster Utility High-capacity Storage Unit Device Seismic Detector Storage High-capacity Storage Unit Processor Core Analyzer Hackware Makeshift System Shield Protection Hardened Medium Armor Plating Weapon Axe Energy Gun EM Pulse Gun Energy Cannon Cooled Particle Cannon Ballistic Gun Light Assault Rifle Launcher Mini Grenade Launcher Impact Weapon Great Maul Slashing Weapon Axe Special Melee Weapon Improved Datajack Build | -11 -10 -10 -10 -9 -8 -8 -7 -7 -7 ------- Run | Scr Mat Min Exi Min Mat Sto Fac Low Low Slots Evolved 6 | . . . . . 4 . 2 . . Power . | . . . . . . . . . . Propulsion 2 | . . . . . 1 . 1 . . Utility 3 | . . . . . 2 . 1 . . Weapon 1 | . . . . . 1 . . . . Parts Attached 132 | 4 12 2 1 4 34 36 25 5 9 Power 9 | . . 1 . 1 3 2 2 . . Engine 3 | . . . . 1 2 . . . . Core 6 | . . 1 . . 1 2 2 . . Reactor . | . . . . . . . . . . Propulsion 25 | 2 2 . . 1 6 4 5 2 3 Treads 6 | 2 1 . . . 1 . . 2 . Leg 13 | . . . . . 4 4 5 . . Wheel 3 | . 1 . . 1 1 . . . . Hover . | . . . . . . . . . . Flight 3 | . . . . . . . . . 3 Utility 49 | 1 1 1 1 1 14 17 10 1 2 Device 27 | 1 . 1 . 1 6 13 5 . . Storage 2 | . 1 . 1 . . . . . . Processor 4 | . . . . . 1 . 1 1 1 Hackware 3 | . . . . . . . 2 . 1 Protection 13 | . . . . . 7 4 2 . . Artifact . | . . . . . . . . . . Weapon 49 | 1 9 . . 1 11 13 8 2 4 Energy Gun . | . . . . . . . . . . Energy Cannon 2 | . . . . . . . 1 . 1 Ballistic Gun 10 | 1 6 . . 1 2 . . . . Ballistic Cannon . | . . . . . . . . . . Launcher 7 | . . . . . 2 1 1 2 1 Special Weapon . | . . . . . . . . . . Impact Weapon 2 | . . . . . . 2 . . . Slashing Weapon 21 | . . . . . 7 6 6 . 2 Piercing Weapon . | . . . . . . . . . . Special Melee Weapon 7 | . 3 . . . . 4 . . . Unidentified Prototypes 2 | . . . . . 1 1 . . . Parts Lost 23 | . . . . 3 2 3 15 . . Power 6 | . . . . 1 1 2 2 . . Propulsion 10 | . . . . 1 . 1 8 . . Utility 5 | . . . . 1 1 . 3 . . Weapon 2 | . . . . . . . 2 . . Highest Loss Streak 8 | . . . . 2 1 1 8 . . To Critical Strikes . | . . . . . . . . . . Average Slot Usage (%) 94 | . 100 100 100 97 97 99 90 26 64 Engine 5 | . 14 3 . 2 8 . . . . Core 4 | . . 10 14 11 . 7 6 . . Treads 8 | . 26 14 14 12 1 . . 7 . Leg 13 | . . . . . 22 27 27 . . Wheel 4 | . 1 14 14 14 3 . . . . Device 10 | . 14 14 14 12 8 9 11 . . Storage 10 | . 14 14 14 14 9 9 6 . . Processor 5 | . . . . . 8 9 8 10 22 Protection 4 | . . . . . 8 8 6 . . Ballistic Gun 10 | . 26 28 28 28 . . . . . Impact Weapon 1 | . . . . . . 8 1 . . Slashing Weapon 12 | . . . . . 26 17 16 6 11 Naked Turns . | . . . . . . . . . . Heaviest Build 72 | 13 32 32 52 52 72 69 70 4 13 Greatest Support 74 | 40 40 12 12 22 60 58 74 3 15 Greatest Overweight (x) 5 | . 2 2 4 4 5 1 3 1 4 Average Overweight (x) . | . . 2 2 3 1 . . . . Largest Inventory Capacity 20 | 8 15 15 20 20 20 20 20 5 5 Average Capacity 16 | 8 14 15 15 20 20 20 19 5 5 Most Carried 20 | 6 15 15 15 17 20 20 20 5 5 Average Carried 14 | 2 11 15 15 15 19 19 17 4 3 Final Capacity 20 | 8 15 15 20 20 20 20 5 5 5 Final Carried 20 | 4 15 15 15 13 20 20 5 5 5 Class Distribution -------------------- 93% | Mutant 3% | Gladiator Dominant Class ---------------- Mutant | -10/Materials Mutant | -10/Mines Mutant | -10/Exiles Mutant | -9/Mines Mutant | -8/Materials Mutant | -8/Storage Mutant | -7/Factory Mutant | -7/Lower Caves Scavenger-Sprinter | -7/Lower Caves Resources | -11 -10 -10 -10 -9 -8 -8 -7 -7 -7 ----------- Run | Scr Mat Min Exi Min Mat Sto Fac Low Low Matter Collected 2061 | 320 122 180 . 201 484 380 255 84 35 Remotely . | . . . . . . . . . . Salvage Created 5814 | 155 429 176 . 398 2087 1183 1282 87 17 Parts 383 | 24 21 14 . 33 136 65 76 10 4 Haulers Intercepted 12 | . 2 . . . 4 4 2 . . Recyclers Shooed 1 | . . . . . . 1 . . . Parts Field Recycled . | . . . . . . . . . . Retrieved Matter . | . . . . . . . . . . Parts Self-Destructed 6 | . . . . . . . . 6 . Prevented . | . . . . . . . . . . Kills | -11 -10 -10 -10 -9 -8 -8 -7 -7 -7 ------- Run | Scr Mat Min Exi Min Mat Sto Fac Low Low Combat Hostiles Destroyed 94 | . 7 3 . 11 31 15 19 7 1 Melee 55 | . . . . . 23 15 16 . 1 Guns 21 | . 7 3 . 11 . . . . . AOE 18 | . . . . . 8 . 3 7 . Classes Destroyed 15 | 1 3 . . 4 3 . 3 . 1 Worker 21 | . . . . 4 9 3 5 . . Builder 4 | . 1 1 . . 1 1 . . . Tunneler 11 | 8 . 1 . 1 1 . . . . Hauler 12 | . 2 . . . 4 4 2 . . Recycler 12 | . . . . 1 5 3 3 . . Operator 4 | . . . . . 3 1 . . . Watcher 6 | . . . . . 4 . 2 . . Swarmer 26 | . . . . 8 6 . 5 7 . Grunt 43 | . 7 3 . 2 18 8 5 . . Duelist 3 | . . . . 1 . 2 . . . Sentry 14 | . . . . . 7 5 2 . . Specialist 2 | . . . . . . . 2 . . Hunter 1 | . . . . . . . 1 . . Programmer 4 | . . . . . . . 4 . . Thief 1 | . . . . . . . . . 1 Best Kill Streak 11 | 2 2 2 . 5 11 4 11 4 1 Combat Bots Only 6 | . 2 2 . 4 6 3 5 4 1 Max Kills in Single Turn 6 | 1 1 1 . 2 6 1 4 3 1 Gunslinging . | . . . . . . . . . . Exploded 4 | . . . . . 4 . 2 3 . Melee 1 | . . . . . 1 1 1 . 1 Uniques/NPCs Destroyed . | . . . . . . . . . . Combat | -11 -10 -10 -10 -9 -8 -8 -7 -7 -7 -------- Run | Scr Mat Min Exi Min Mat Sto Fac Low Low Damage Taken 5595 | . 457 62 . 467 1165 774 2498 146 26 Core 1117 | . 123 . . 102 162 28 590 91 21 Absorbed by Shields . | . . . . . . . . . . Core Remaining (%) 58 | 100 . . . 10 . 65 . . . Volleys Fired 136 | 40 44 8 . 30 7 . 2 5 . Largest 2 | 2 2 2 . 2 1 . 1 1 . Hottest 90 | 40 43 46 . 46 30 . 90 30 . Shots Fired 256 | 80 86 16 . 60 7 . 2 5 . Gun 242 | 80 86 16 . 60 . . . . . Cannon 1 | . . . . . . . 1 . . Launcher 13 | . . . . . 7 . 1 5 . Special . | . . . . . . . . . . Kinetic 242 | 80 86 16 . 60 . . . . . Thermal 1 | . . . . . . . 1 . . Explosive 13 | . . . . . 7 . 1 5 . Electromagnetic . | . . . . . . . . . . Robot Hit Streak 19 | 5 19 6 . 6 4 . 2 . . Robot Miss Streak 5 | 4 3 3 . 5 1 . . 1 . Penetration Max . | . . . . . . . . . . Secondary Targets 1 | . . 1 . . . . . . . Max Gunslinging Chain 1 | . . 1 . . . . . . . Shots Hit Robots 363 | 46 61 12 . 36 97 46 63 . 2 Core Hits 211 | 19 27 11 . 23 64 26 33 7 1 Critical Kills 3 | . 2 . . 1 . . . . . Critical Parts Destroyed 4 | 1 . . . 1 . 2 . . . Critical Strikes 31 | 1 2 . . 2 10 4 12 . . Destroy 5 | 1 2 . . 2 . . . . . Smash 4 | . . . . . . 4 . . . Sever 22 | . . . . . 10 . 12 . . Melee Attacks 311 | . . . . . 135 86 87 . 3 Impact 20 | . . . . . . 20 . . . Slashing 291 | . . . . . 135 66 87 . 3 Piercing . | . . . . . . . . . . Sneak Attacks 46 | . . . . . 22 15 8 . 1 Combat Hostiles . | . . . . . . . . . . Follow-up Attacks 56 | . . . . . 29 10 17 . . Damage Inflicted 14342 | 387 499 156 . 469 5618 2566 4016 559 72 Guns 1511 | 387 499 156 . 469 . . . . . Cannons . | . . . . . . . . . . Explosions 2055 | . . . . . 838 . 658 559 . Melee 10757 | . . . . . 4780 2559 3346 . 72 Ramming 19 | . . . . . . 7 12 . . Kinetic 1511 | 387 499 156 . 469 . . . . . Thermal 353 | . . . . . . . 353 . . Explosive 1702 | . . . . . 838 . 305 559 . Electromagnetic . | . . . . . . . . . . Impact 598 | . . . . . . 598 . . . Slashing 10159 | . . . . . 4780 1961 3346 . 72 Piercing . | . . . . . . . . . . Highest Corruption 5 | . . . . . . 1 5 5 5 Average Corruption 2 | . . . . . . 1 4 5 5 Corruption Purged . | . . . . . . . . . . Corruption Blocked 8 | . . . . . . . 8 . . Effects 32 | . . . . . . 13 6 10 3 Message Errors 5 | . . . . . . 3 1 . 1 Matter Fused 7 | . . . . . . 1 2 4 . Heat Flow Errors 3 | . . . . . . . . 3 . Energy Discharges 5 | . . . . . . 2 2 . 1 Data Loss (major) 7 | . . . . . . 5 1 1 . Alerts 5 | . . . . . . 2 . 2 1 Overload Shots 1 | . . . . . . . 1 . . Overflow Damage 1793 | . . . . . 662 545 530 56 . Projectiles . | . . . . . . . . . . Explosions 152 | . . . . . 26 . 70 56 . Melee 1641 | . . . . . 636 545 460 . . Knockbacks 2 | . . . . . . 2 . . . Impact 2 | . . . . . . 2 . . . Kinetic . | . . . . . . . . . . Secondary . | . . . . . . . . . . Self-Inflicted Damage 180 | . . . . . 88 . 58 34 . Shots 8 | . . . . . 4 . 2 2 . Rammed 1 | . . . . . . . 1 . . Targets Rammed 3 | . . . . . . 1 2 . . Kicked 2 | . . . . . . 1 1 . . Crushed . | . . . . . . . . . . Highest Temperature 249 | . 37 20 . 9 24 8 50 249 . Average Temperature 23 | . 13 11 . 6 12 8 17 92 . Received Heat Transfer 1707 | . 300 36 . 60 567 207 531 . 6 Siege Activations . | . . . . . . . . . . Robots Corrupted . | . . . . . . . . . . Combat Hostiles . | . . . . . . . . . . Parts Fried . | . . . . . . . . . . Impact Corruptions 4 | . . . . . . 4 . . . Robots Melted . | . . . . . . . . . . Combat Hostiles . | . . . . . . . . . . Parts Melted 1 | . . . . . . . 1 . . Heat Transferred 250 | . . . . . . . 250 . . Parts Sabotaged . | . . . . . . . . . . Parts Stolen . | . . . . . . . . . . Parts Stripped . | . . . . . . . . . . Power Chain Reactions . | . . . . . . . . . . Missiles Intercepted . | . . . . . . . . . . Alert | -11 -10 -10 -10 -9 -8 -8 -7 -7 -7 ------- Run | Scr Mat Min Exi Min Mat Sto Fac Low Low Peak Influence 664 | 15 121 213 . 197 664 437 568 . . Initial 165 | . 3 14 . . 18 18 165 . . Average 163 | 6 56 115 . 73 241 264 282 . . Maximum Alert Level 2 | . . 1 . . 2 2 2 . . Low Security (%) 69 | 100 100 76 . 100 50 35 51 . . Level 1 19 | . . 23 . . 27 50 18 . . Level 2 11 | . . . . . 22 13 30 . . Level 3 . | . . . . . . . . . . Level 4 . | . . . . . . . . . . Level 5 . | . . . . . . . . . . High Security . | . . . . . . . . . . Max Security . | . . . . . . . . . . Squads Dispatched 17 | . 1 . . . 4 7 5 . . Investigation 3 | . . . . . . 2 1 . . Extermination 1 | . . . . . . . 1 . . Reinforcement 13 | . 1 . . . 4 5 3 . . Assault . | . . . . . . . . . . Garrison . | . . . . . . . . . . Intercept . | . . . . . . . . . . Construction Impeded 3 | . . . . . 1 2 . . . Haulers Reinforced 1 | . . . . . . . 1 . . Active Scanning Responses . | . . . . . . . . . . Cargo Convoy Interrupts 1 | . . . . . . . 1 . . Stealth | -11 -10 -10 -10 -9 -8 -8 -7 -7 -7 --------- Run | Scr Mat Min Exi Min Mat Sto Fac Low Low Distress Signals 12 | . 1 . . . 5 5 1 . . Communications Jammed . | . . . . . . . . . . Distress Signals . | . . . . . . . . . . Times Spotted 188 | . 19 11 . 16 57 26 48 7 4 Peak Tracking Total 10 | . 4 3 . 4 5 5 10 4 3 Tactical Retreats 13 | . 1 . . 2 4 1 5 . . Traps | -11 -10 -10 -10 -9 -8 -8 -7 -7 -7 ------- Run | Scr Mat Min Exi Min Mat Sto Fac Low Low Traps Triggered 3 | . . . . . . 3 . . . Indirectly . | . . . . . . . . . . Trap Hack Attempts 163 | . 90 . . . . 73 . . . Triggered 1 | . . . . . . 1 . . . Disarmed 1 | . 1 . . . . . . . . Reprogrammed 7 | . 4 . . . . 3 . . . Reused 4 | . 1 . . . . 2 1 . . Traps Extracted 4 | . . . . . . 4 . . . Installed 4 | . . . . . . 3 1 . . Triggered 7 | . 1 . . . . 3 3 . . Most Traps Carried 2 | . . . . . . 2 1 . . Machines | -11 -10 -10 -10 -9 -8 -8 -7 -7 -7 ---------- Run | Scr Mat Min Exi Min Mat Sto Fac Low Low Machines Disabled 10 | . . . . . 1 3 6 . . Max in Single Turn 6 | . . . . . 1 1 6 . . Garrison Access 2 | . . . . . 1 1 . . . Machines Sabotaged . | . . . . . . . . . . Garrisons Compromised 1 | . . . . . . . 1 . . Overloaded Fab Kills . | . . . . . . . . . . Hacking | -11 -10 -10 -10 -9 -8 -8 -7 -7 -7 --------- Run | Scr Mat Min Exi Min Mat Sto Fac Low Low Machines Accessed 30 | . 7 . 1 . 10 9 3 . . Terminals 23 | . 7 . . . 8 6 2 . . Fabricators 1 | . . . . . . . 1 . . Repair Stations . | . . . . . . . . . . Recycling Units 3 | . . . . . 1 2 . . . Scanalyzers . | . . . . . . . . . . Garrison Access 2 | . . . . . 1 1 . . . Total Hacks 74 | . 19 . 1 . 27 20 7 . . Successful 35 | . 8 . 1 . 18 7 1 . . Failed 39 | . 11 . . . 9 13 6 . . Catastrophic 2 | . . . . . . 2 . . . Database Lockouts . | . . . . . . . . . . Manual 10 | . . . . . 2 6 2 . . Terminals 64 | . 19 . . . 24 16 5 . . Fabricators 2 | . . . . . . . 2 . . Repair Stations . | . . . . . . . . . . Recycling Units 5 | . . . . . 2 3 . . . Scanalyzers . | . . . . . . . . . . Garrison Access 2 | . . . . . 1 1 . . . Terminal Hacks 30 | . 8 . 1 . 16 4 1 . . Record 1 | . . . 1 . . . . . . Prototype ID Bank 6 | . 2 . . . 4 . . . . Open Door 3 | . . . . . . 3 . . . Branch Access Points 1 | . . . . . . . 1 . . Unreport Threat 5 | . . . . . 4 1 . . . Locate Traps 7 | . 4 . . . 3 . . . . Hauler Manifests 2 | . . . . . 2 . . . . Zone Layout 5 | . 2 . . . 3 . . . . Fabricator Hacks . | . . . . . . . . . . Repair Station Hacks . | . . . . . . . . . . Recycling Unit Hacks 1 | . . . . . 1 . . . . Report Inventory 1 | . . . . . 1 . . . . Scanalyzer . | . . . . . . . . . . Garrison Access Hacks 2 | . . . . . 1 1 . . . Seal Access 2 | . . . . . 1 1 . . . Unauthorized Hacks 2 | . . . . . . 2 . . . Terminals . | . . . . . . . . . . Fabricators . | . . . . . . . . . . Repair Stations . | . . . . . . . . . . Recycling Units 2 | . . . . . . 2 . . . Tunnel 2 | . . . . . . 2 . . . Scanalyzers . | . . . . . . . . . . Garrison Access . | . . . . . . . . . . Data Cores Recovered . | . . . . . . . . . . Used . | . . . . . . . . . . Hacking Detections 20 | . 7 . . . 5 5 3 . . Full Trace Events 2 | . . . . . . 1 1 . . Feedback Events 1 | . . . . . . 1 . . . Corruption 1 | . . . . . . 1 . . . Feedback Blocked . | . . . . . . . . . . Robot Schematics Acquired . | . . . . . . . . . . Robots Built . | . . . . . . . . . . Authchips . | . . . . . . . . . . Time . | . . . . . . . . . . Total Robot Build Rating . | . . . . . . . . . . Part Schematics Acquired . | . . . . . . . . . . Parts Built . | . . . . . . . . . . Authchips . | . . . . . . . . . . Time . | . . . . . . . . . . Total Part Build Rating . | . . . . . . . . . . Parts Repaired . | . . . . . . . . . . Time . | . . . . . . . . . . Parts Recycled . | . . . . . . . . . . Recycled Matter . | . . . . . . . . . . Retrieved Matter . | . . . . . . . . . . Retrieved Components . | . . . . . . . . . . Parts Scanalyzed . | . . . . . . . . . . Part Schematics Acquired . | . . . . . . . . . . Parts Damaged . | . . . . . . . . . . Bothacking | -11 -10 -10 -10 -9 -8 -8 -7 -7 -7 ------------ Run | Scr Mat Min Exi Min Mat Sto Fac Low Low Used RIF Installer . | . . . . . . . . . . Robots Hacked . | . . . . . . . . . . Non-combat . | . . . . . . . . . . Combat . | . . . . . . . . . . Robot Hacks Applied . | . . . . . . . . . . Relay Couplers Released . | . . . . . . . . . . Fabnet Peak Effective % . | . . . . . . . . . . Robots Rewired . | . . . . . . . . . . Allies Hacked . | . . . . . . . . . . Hacks Repelled . | . . . . . . . . . . Allies | -11 -10 -10 -10 -9 -8 -8 -7 -7 -7 -------- Run | Scr Mat Min Exi Min Mat Sto Fac Low Low Total Allies 17 | . . 3 . 1 . 13 . . . Largest Group 12 | . . 3 1 1 . 12 2 . . Highest-Rated Group 235 | . . 40 8 31 . 235 32 . . Highest-Rated Ally 31 | . . 16 8 31 . 31 16 . . Total Orders . | . . . . . . . . . . Ally Attacks 171 | . . 40 . 6 . 111 14 . . Total Damage 2155 | . . 344 . 86 . 1574 151 . . Kills 33 | . . 10 . 3 . 19 1 . . Allies Corrupted . | . . . . . . . . . . Allies Melted . | . . . . . . . . . . Intel | -11 -10 -10 -10 -9 -8 -8 -7 -7 -7 ------- Run | Scr Mat Min Exi Min Mat Sto Fac Low Low Robot Analysis Total . | . . . . . . . . . . Derelict Logs Recovered 5 | . . 1 . 3 . . . 1 . Drone Launches . | . . . . . . . . . . Drone Recoveries . | . . . . . . . . . . Exploration | -11 -10 -10 -10 -9 -8 -8 -7 -7 -7 ------------- Run | Scr Mat Min Exi Min Mat Sto Fac Low Low Turns Passed 10688 | 1316 1608 825 366 819 2495 1664 1058 364 173 Spaces Moved 6056 | 565 779 629 290 463 1107 668 623 659 273 Core 672 | . . . . . . . 10 659 3 Treads 1267 | 564 703 . . . . . . . . Legs 2169 | 1 . . . . 887 668 613 . . Wheels 1678 | . 76 629 290 463 220 . . . . Hover . | . . . . . . . . . . Flight 270 | . . . . . . . . . 270 Fastest Speed 29 | 120 120 120 120 115 101 126 50 50 29 Average Speed 139 | 159 156 120 124 149 180 192 129 52 30 Slowest Speed 330 | 160 160 120 150 150 200 196 330 100 250 Overloaded Moves . | . . . . . . . . . . Propulsion Burnouts . | . . . . . . . . . . Robots Hopped . | . . . . . . . . . . Cave-ins Triggered . | . . . . . . . . . . Exploration Rate (%) 69 | 43 92 96 68 98 74 87 23 80 29 Regions Visited 9 Branch Regions 6 Pre-discovered Areas 3 | . . . . 1 . 2 . . . Known Exits Taken 3 | . . . . 1 1 . 1 . . Unknown Exits Taken 6 | 1 1 1 1 . . 1 . 1 . Scrap Searched 6 | . . . . 2 . . . 3 1 Spaces Dug 38 | . . . . . 4 8 3 23 . Terrain Destroyed 120 | . . . . . 46 8 28 38 . Melee 14 | . . . . . 4 8 2 . . Projectile 1 | . . . . . . . 1 . . AOE 105 | . . . . . 42 . 25 38 . Terrain Rammed . | . . . . . . . . . . Walls Destroyed . | . . . . . . . . . . Machines Disabled . | . . . . . . . . . . Actions | -11 -10 -10 -10 -9 -8 -8 -7 -7 -7 --------- Run | Scr Mat Min Exi Min Mat Sto Fac Low Low Total 7662 | 916 1104 683 297 528 1434 928 746 671 355 Wait 793 | 298 143 43 6 30 119 67 21 . 66 Move 6048 | 564 778 628 289 462 1106 667 623 658 273 Hop . | . . . . . . . . . . Pick Up 80 | 4 23 . . 2 40 7 3 . 1 Fast Attach 29 | 1 . 2 . . 8 6 4 3 5 Attach 32 | 3 2 . . 4 8 2 9 2 2 Detach 5 | . . . . . 1 1 1 2 . Swap 71 | . 10 . 1 . 18 28 12 . 2 Drop 83 | 6 14 2 1 . 38 11 7 1 3 Fire 136 | 40 44 8 . 30 7 . 2 5 . Melee 216 | . . . . . 89 62 62 . 3 Ram . | . . . . . . . . . . Kick 2 | . . . . . . 1 1 . . Crush . | . . . . . . . . . . Escape Stasis . | . . . . . . . . . . Rewire . | . . . . . . . . . . Trap 167 | . 90 . . . . 76 1 . . Miscellaneous . | . . . . . . . . . . Route ------- -11/Scrapyard -10/Materials (discovered 4 exits: [*Mat x3] / [*Min]) -10/Mines (discovered 2 exits: [*Mat] / *Exi) -10/Exiles -9/Mines (discovered 2 exits: *Mat x2) -8/Materials (discovered 3 exits: *Fac x2 / *Sto) -8/Storage -7/Factory (discovered 2 exits: *Low x2) -7/Lower Caves -7/Lower Caves (discovered 1 exit: [*Fac]) History --------- Turn | Location | Event 1 | -11/Scrapyard | Discovered new exit (range 2) 1317 | -11/Scrapyard | Entered Materials 1318 | -10/Materials | Build established: Mutant 1834 | -10/Materials | Discovered new exit (range 5) 2033 | -10/Materials | Discovered new exit (range 8) 2093 | -10/Materials | Discovered new exit (range 15) 2671 | -10/Materials | Discovered new exit (range 5) 2925 | -10/Materials | Entered Mines 2970 | -10/Mines | Assisted by bots powering up and referring to "LRC-V3" 3066 | -10/Mines | Learned 2 Materials zone layouts 3223 | -10/Mines | Deemed a non-threat by the Exiles lab entrance 3223 | -10/Mines | Discovered new exit (range 5) 3379 | -10/Mines | Discovered new exit (range 8) 3750 | -10/Mines | Entered Exiles 3750 | -10/Exiles | Found Exiles lab abandoned 3750 | -10/Exiles | Accompanied by 1 ally 4098 | -10/Exiles | Discovered new exit (range 10) 4116 | -10/Exiles | Entered Mines 4116 | -9/Mines | Accompanied by 1 ally 4171 | -9/Mines | Met a Derelict bent on vengeance 4281 | -9/Mines | Core integrity fell below 50% 4341 | -9/Mines | Learned Materials emergency access door positions 4344 | -9/Mines | Received a Mining Laser from a helpful Derelict 4424 | -9/Mines | Learned location of Storage (-8) 4439 | -9/Mines | Identified exit to Materials 4600 | -9/Mines | Discovered exit to Materials (range 14) 4862 | -9/Mines | Core integrity fell below 20% 4935 | -9/Mines | Entered Materials 4935 | -8/Materials | Evolved 4 slots: Propulsion x1, Utility x2, Weapon x1 4936 | -8/Materials | Identified exit to Storage 5183 | -8/Materials | Discovered new exit (range 7) 5493 | -8/Materials | Discovered new exit (range 12) 7430 | -8/Materials | Entered Storage 8799 | -8/Storage | Assisted by bots powering up and referring to "LRC-V3" 8998 | -8/Storage | Discovered new exit (range 15) 9094 | -8/Storage | Entered Factory 9094 | -7/Factory | Accompanied by 2 allies 9094 | -7/Factory | Evolved 2 slots: Propulsion x1, Utility x1 9334 | -7/Factory | Identified exit to Lower Caves 9806 | -7/Factory | Cargo convoy interrupted 9960 | -7/Factory | Lost 5 parts (1p2n1u1w) 10145 | -7/Factory | Core integrity fell below 50% 10152 | -7/Factory | Core integrity fell below 20% 10152 | -7/Factory | Entered Lower Caves 10175 | -7/Lower Caves | Lost 8 parts (1p4n2u1w) 10380 | -7/Lower Caves | Learned Factory garrison access intel 10448 | -7/Lower Caves | Spotted B-75 Beast 10510 | -7/Lower Caves | Discovered new exit (range 15) 10516 | -7/Lower Caves | Entered another Lower Caves area 10649 | -7/Lower Caves | Discovered new exit (range 14) 10689 | -7/Lower Caves | Destroyed by Y-54 Guardian with Flak Gun Last Messages --------------- LOCATION=UNKNOWN GOAL=ESCAPE 10518_ A5-8IO(f) destroyed. 10522_ Acquired Unknown Slashing Weapon. 10522_ Identified Tearclaws. 10526_ Dropped Med. Treads. 10527_ Acquired Cesium-ion Thruster. 10535_ Acquired 17 matter. 10569_ Searching scrap... 10569_ Found Mak. System Shield. 10569_ Found 18 Matter. 10569_ Acquired Mak. System Shield. 10571_ Acquired 18 matter. 10584_ Sneak attack on M-14 Sweeper. 10606_ System corrupted: Energy discharge (-9). 10612_ Dropped Tearclaws. 10643_ GH4ARLB4M: